bitfinex/quotes_BTCUSD_20240715
["timestamp","ask_amount","ask_price","bid_price","bid_amount"]
[1721015169903,1.0124065,62788.0,62787.0,0.716707]
[1721015170253,1.0124065,62788.0,62787.0,1.00339]
[1721015170451,1.0124065,62788.0,62787.0,1.12339]
[1721015171060,1.0124065,62788.0,62787.0,1.13739]
[1721015171261,1.0124065,62788.0,62787.0,1.12339]
[1721015171657,1.0124065,62788.0,62787.0,1.01739]
[1721015171899,1.0124065,62788.0,62787.0,1.00339]
[1721015172075,1.0124065,62788.0,62787.0,0.430024]
[1721015172281,1.0124065,62788.0,62787.0,0.143341]
[1721015172558,1.0744065,62788.0,62787.0,0.444024]
[1721015173015,1.3377455,62788.0,62787.0,0.014]
[1721015173313,1.6244235,62788.0,62787.0,0.014]
[1721015173562,1.6244235,62788.0,62787.0,0.028]
[1721015173767,1.9111015,62788.0,62787.0,0.028]
[1721015173894,1.9111015,62788.0,62787.0,0.014]
[1721015174233,1.9111015,62788.0,62787.0,0.028]
[1721015174436,1.9111015,62788.0,62787.0,0.014]
[1721015174936,1.9111015,62788.0,62787.0,0.028]
[1721015174937,2.55989741,62788.0,62787.0,0.028]
[1721015175139,2.2740795,62788.0,62787.0,0.014]
[1721015175723,0.143364,62777.0,62772.0,0.00306353]
[1721015175930,0.00398281,62776.0,62772.0,0.14643853]
[1721015176314,0.263373,62773.0,62772.0,0.00306353]
[1721015176530,0.263376,62772.0,62771.0,0.46828973]
[1721015176690,0.00398289,62773.0,62771.0,0.46828973]
[1721015177833,0.06,62779.0,62772.0,0.00306353]
[1721015178027,0.12,62776.0,62772.0,0.00306353]
[1721015178206,0.12,62774.0,62772.0,0.014]
[1721015178417,0.00398283,62773.0,62772.0,0.014]
[1721015178638,0.0037911,62773.0,62772.0,0.014]
[1721015179223,0.0037911,62773.0,62772.0,0.028]
[1721015179436,0.0037911,62773.0,62772.0,0.014]
[1721015179636,0.0037911,62773.0,62771.0,0.01]
[1721015179846,0.0037911,62773.0,62772.0,0.014]
[1721015180342,0.143366,62777.0,62772.0,0.014]
[1721015180343,0.00379113,62776.0,62772.0,0.014]
[1721015180510,0.00379113,62776.0,62772.0,0.028]
[1721015181321,0.00379113,62776.0,62770.0,0.14338]
[1721015181521,0.00379113,62776.0,62772.0,0.014]
[1721015181745,0.00379115,62775.0,62772.0,0.014]
[1721015181947,0.143364,62777.0,62770.0,0.143378]
[1721015182145,0.00379113,62776.0,62772.0,0.014]
[1721015182426,0.263369,62775.0,62772.0,0.014]
[1721015182625,0.00379112,62774.0,62772.0,0.026]
[1721015182829,0.12379112,62774.0,62772.0,0.026]
[1721015183169,0.00379112,62774.0,62772.0,0.026]
[1721015183369,0.34672,62779.0,62775.0,0.143369]
[1721015183370,0.00398285,62778.0,62775.0,0.143369]
[1721015183735,0.00398285,62778.0,62773.0,0.430117]
[1721015183935,0.01340001,62777.0,62773.0,0.430117]
[1721015184134,0.00398267,62776.0,62773.0,0.430117]
[1721015184382,0.01340001,62775.0,62773.0,0.430117]
[1721015184754,0.01340001,62775.0,62774.0,0.430113]
[1721015184958,0.06398267,62779.0,62774.0,0.430113]
[1721015184959,0.06,62779.0,62776.0,0.143366]
[1721015185134,0.06,62779.0,62773.0,0.286745]
[1721015185135,0.01348608,62778.0,62777.0,0.143363]
[1721015185336,0.03017564,62778.0,62777.0,0.143363]
[1721015185941,0.03017564,62778.0,62777.0,0.430092]
[1721015186155,0.01669126,62778.0,62777.0,0.716821]
[1721015186844,0.01669126,62778.0,62777.0,0.726821]
[1721015187363,0.01669126,62778.0,62777.0,0.716821]
[1721015187769,0.01669126,62778.0,62777.0,0.744821]
[1721015188191,0.01669126,62778.0,62777.0,0.730821]
[1721015188393,0.01669126,62778.0,62777.0,0.744821]
[1721015188831,0.01669126,62778.0,62777.0,0.730821]
[1721015189039,1.0,62781.0,62780.0,0.716787]
[1721015189410,1.01273761,62781.0,62780.0,0.716787]
[1721015190231,1.01273761,62781.0,62778.0,0.286723]
[1721015190438,0.08152002,62780.0,62778.0,0.143362]
[1721015190666,0.01273761,62779.0,62778.0,0.430086]
[1721015191420,0.01273761,62779.0,62778.0,0.143362]
[1721015191649,0.01273761,62779.0,62776.0,0.286733]
[1721015191650,0.01189342,62779.0,62773.0,0.286745]
[1721015191860,0.01189342,62779.0,62776.0,0.143366]
[1721015191861,0.0039825,62778.0,62776.0,0.143366]
[1721015192749,0.00398245,62780.0,62776.0,0.143366]
[1721015192957,0.01186748,62779.0,62776.0,0.143366]
[1721015193175,0.00398245,62778.0,62776.0,0.143366]
[1721015193377,0.01186612,62777.0,62776.0,0.143366]
[1721015193813,0.01186612,62777.0,62776.0,0.156366]
[1721015194028,0.01186612,62777.0,62776.0,0.013]
[1721015194235,0.01186612,62777.0,62775.0,0.143369]
[1721015194436,0.00398266,62776.0,62775.0,0.143369]
[1721015194775,0.00398257,62780.0,62776.0,0.014]
[1721015195001,0.01137942,62779.0,62775.0,0.143369]
[1721015195195,0.00398257,62778.0,62775.0,0.143369]
[1721015195413,0.01137467,62777.0,62776.0,0.014]
[1721015195611,0.01137467,62777.0,62775.0,0.143369]
[1721015195923,0.00398257,62776.0,62775.0,0.143369]
[1721015196123,0.00398257,62780.0,62770.0,0.00306353]
[1721015196349,0.00398257,62780.0,62769.0,0.00947434]
[1721015196350,0.01138254,62779.0,62777.0,0.143363]
[1721015196512,0.01138254,62779.0,62778.0,0.143362]
[1721015196922,0.01138254,62780.0,62778.0,0.143362]
[1721015197130,1.0,62781.0,62778.0,0.430086]
[1721015197131,0.01138254,62779.0,62778.0,0.430086]
[1721015197358,0.0112866,62779.0,62778.0,0.286724]
[1721015197571,1.0,62781.0,62779.0,0.28672]
[1721015197791,0.01128631,62780.0,62778.0,0.300724]
[1721015198015,0.01128631,62780.0,62779.0,0.43008]
[1721015198225,1.0,62781.0,62780.0,0.430072]
[1721015198444,1.01119139,62781.0,62780.0,0.430072]
[1721015200065,1.01119139,62781.0,62780.0,0.444072]
[1721015200288,1.01119139,62781.0,62780.0,0.455072]
[1721015201328,1.0,62781.0,62780.0,0.455072]
[1721015201562,1.01112443,62781.0,62780.0,0.455072]
[1721015202803,1.01112443,62781.0,62780.0,0.025]
[1721015204010,1.01112443,62781.0,62780.0,0.168357]
[1721015204213,1.01112443,62781.0,62780.0,0.455072]
[1721015204409,1.01112443,62781.0,62780.0,0.741787]
[1721015204614,1.0,62781.0,62780.0,0.741787]
[1721015204812,1.01040599,62781.0,62780.0,0.741787]
[1721015205039,1.01040718,62781.0,62780.0,0.741787]
[1721015205599,1.01040718,62781.0,62780.0,0.806587]
[1721015207879,1.0,62781.0,62780.0,0.806587]
[1721015208086,1.01493844,62781.0,62780.0,0.806587]
[1721015210405,1.01493844,62781.0,62780.0,0.741787]
[1721015211202,1.0,62781.0,62780.0,0.881087]
[1721015211455,1.01427136,62781.0,62780.0,0.881087]
[1721015212200,1.01427136,62781.0,62780.0,1.167802]
[1721015213147,1.0124065,62788.0,62787.0,1.56439]
[1721015213301,1.0124065,62788.0,62787.0,1.81459]
[1721015213640,1.0124065,62788.0,62787.0,2.11175692]
[1721015215712,1.0124065,62788.0,62787.0,1.59855692]
[1721015215906,1.0124065,62788.0,62787.0,1.61255692]
[1721015216164,1.0124065,62788.0,62787.0,1.17239]
[1721015217190,1.0124065,62788.0,62787.0,1.29239]
[1721015217887,1.0124065,62788.0,62787.0,1.17239]
[1721015218627,1.0124065,62788.0,62787.0,0.458024]
[1721015219036,1.0124065,62788.0,62787.0,0.744707]
[1721015219440,1.1506065,62788.0,62787.0,0.028]
[1721015219663,1.1506065,62788.0,62787.0,0.014]
[1721015219861,1.1506065,62788.0,62787.0,0.143341]
[1721015219862,1.0124065,62788.0,62787.0,0.143341]
[1721015220098,1.0124065,62788.0,62787.0,0.157341]
[1721015220299,1.0124065,62788.0,62787.0,0.444024]
[1721015221135,1.0124065,62788.0,62787.0,0.028]
[1721015221336,1.0124065,62788.0,62787.0,0.157341]
[1721015221538,1.0124065,62788.0,62787.0,0.430024]
[1721015221773,1.0124065,62788.0,62787.0,0.444024]
[1721015221947,1.0124065,62788.0,62787.0,0.457024]
[1721015222282,1.0124065,62788.0,62787.0,0.444024]
[1721015222662,1.0124065,62788.0,62787.0,0.456024]
[1721015223062,1.0124065,62788.0,62787.0,1.17469]
[1721015223238,1.0124065,62788.0,62787.0,1.29469]
[1721015223645,1.0124065,62788.0,62787.0,2.291056]
[1721015223991,0.8625065,62788.0,62787.0,2.391056]
[1721015224193,0.58413251,62788.0,62787.0,2.391056]
[1721015224515,0.58413251,62788.0,62787.0,2.377056]
[1721015224735,0.58413251,62788.0,62787.0,2.38834009]
[1721015225138,0.58413251,62788.0,62787.0,2.40134009]
[1721015225555,0.58413251,62788.0,62787.0,2.58863009]
[1721015225914,0.58413251,62788.0,62787.0,2.61663009]
[1721015226332,0.58413251,62788.0,62787.0,2.57463009]
[1721015226729,0.58413251,62788.0,62787.0,2.58863009]
[1721015227695,0.58413251,62788.0,62787.0,2.60263009]
[1721015228110,0.58413251,62788.0,62787.0,2.57463009]
[1721015228331,0.108,62800.0,62797.0,2.796793]
[1721015228542,0.0021,62830.0,62829.0,0.42]
[1721015228745,0.0012,62839.0,62838.0,0.28645]
[1721015228948,0.00833,62844.0,62838.0,0.28645]
[1721015228949,0.00333,62844.0,62843.0,1.195204]
[1721015229156,0.01880575,62848.0,62847.0,1.268012]
[1721015229157,3e-07,62848.0,62847.0,1.268012]
[1721015229365,3e-07,62848.0,62847.0,1.28974376]
[1721015229582,0.14205238,62870.0,62847.0,1.28974376]
[1721015229583,0.15173711,62870.0,62848.0,0.143202]
[1721015229775,0.15173711,62870.0,62848.0,0.452607]
[1721015230027,0.15173711,62870.0,62848.0,1.025417]
[1721015230263,1.0,62873.0,62848.0,1.025417]
[1721015230264,1.0,62873.0,62848.0,1.61287438]
[1721015230470,1.0,62873.0,62848.0,3.085332]
[1721015230471,0.58167218,62849.0,62848.0,3.085332]
[1721015230640,0.21523218,62849.0,62848.0,2.271712]
[1721015230871,0.21523218,62849.0,62848.0,2.771712]
[1721015230982,0.20166218,62849.0,62848.0,2.771712]
[1721015231187,0.98684497,62882.0,62865.0,0.806327]
[1721015231387,0.98684497,62882.0,62865.0,1.27669]
[1721015231593,0.98684497,62882.0,62865.0,1.935671]
[1721015231804,0.98684497,62882.0,62865.0,2.135671]
[1721015232017,0.98684497,62882.0,62865.0,1.94609785]
[1721015232272,0.98684497,62882.0,62881.0,1.221889]
[1721015232418,0.98684497,62882.0,62881.0,0.452381]
[1721015232661,0.98684497,62882.0,62881.0,0.143127]
[1721015232859,0.98684497,62882.0,62881.0,1.411143]
[1721015233264,0.98684497,62882.0,62881.0,1.531143]
[1721015233492,0.98684497,62882.0,62881.0,1.563133]
[1721015233816,0.98684497,62882.0,62881.0,0.429381]
[1721015233948,0.98684497,62882.0,62881.0,0.166127]
[1721015234163,0.98684497,62882.0,62881.0,0.738635]
[1721015234385,0.98684497,62882.0,62881.0,0.752635]
[1721015234584,0.98684497,62882.0,62881.0,1.258889]
[1721015234800,0.98684497,62882.0,62881.0,1.176879]
[1721015235003,0.98684497,62882.0,62881.0,0.784625]
[1721015235225,0.98684497,62882.0,62881.0,1.004625]
[1721015235428,0.98684497,62882.0,62881.0,1.276879]
[1721015235699,0.98684497,62882.0,62881.0,1.777133]
[1721015235924,0.98684497,62882.0,62881.0,1.491133]
[1721015236105,0.98684497,62882.0,62881.0,1.190879]
[1721015236337,0.98684497,62882.0,62881.0,1.056879]
[1721015236582,0.98684497,62882.0,62881.0,1.070879]
[1721015237210,0.98684497,62882.0,62881.0,1.056879]
[1721015237385,0.95004497,62882.0,62881.0,2.519487]
[1721015237556,0.12165861,62882.0,62881.0,2.681233]
[1721015237759,0.08502701,62898.0,62888.0,0.429334]
[1721015237991,0.08105238,62898.0,62888.0,0.023]
[1721015238196,0.08105238,62898.0,62882.0,0.12306353]
[1721015238197,0.08105238,62891.0,62882.0,0.12306353]
[1721015238415,0.08105238,62884.0,62883.0,0.452367]
[1721015238634,0.08105238,62884.0,62881.0,0.014]
[1721015238635,0.08105238,62884.0,62882.0,0.143124]
[1721015238854,0.08105238,62884.0,62881.0,0.014]
[1721015238855,0.08105238,62884.0,62883.0,0.14618553]
[1721015239106,0.08105238,62898.0,62894.0,0.143095]
[1721015239316,1.05204497,62899.0,62888.0,0.12]
[1721015239532,1.05204497,62899.0,62898.0,0.143088]
[1721015239737,1.05204497,62899.0,62884.0,0.12]
[1721015239965,1.05204497,62899.0,62896.0,0.143092]
[1721015240161,1.05204497,62899.0,62892.0,0.143101]
[1721015240363,1.05204497,62899.0,62888.0,0.12]
[1721015240584,1.05204497,62899.0,62889.0,0.02606353]
[1721015240797,1.05204497,62899.0,62897.0,0.14309]
[1721015241008,1.05204497,62899.0,62889.0,0.02606353]
[1721015241374,1.05204497,62899.0,62898.0,0.143088]
[1721015241733,1.05204497,62899.0,62896.0,0.014]
[1721015241942,1.05204497,62899.0,62898.0,0.143088]
[1721015242119,1.05204497,62899.0,62893.0,0.286198]
[1721015242320,1.05204497,62899.0,62894.0,0.286195]
[1721015242522,1.05204497,62899.0,62897.0,0.14309]
[1721015242762,1.05204497,62899.0,62896.0,0.143092]
[1721015242965,1.05204497,62899.0,62891.0,0.286207]
[1721015243307,1.05204497,62899.0,62889.0,0.028]
[1721015243308,0.00397467,62898.0,62889.0,0.028]
[1721015243554,0.00397467,62898.0,62889.0,0.01706353]
[1721015243555,0.08105238,62893.0,62889.0,0.01706353]
[1721015243738,0.00397467,62898.0,62889.0,0.014]
[1721015243936,0.00397467,62898.0,62897.0,0.014]
[1721015244183,1.05204497,62899.0,62898.0,0.014]
[1721015244595,1.05204497,62899.0,62890.0,0.00306353]
[1721015244596,1.19513097,62899.0,62890.0,0.00306353]
[1721015244815,1.19513097,62899.0,62873.0,0.23199]
[1721015244816,0.12,62888.0,62887.0,0.00306353]
[1721015245014,0.06,62874.0,62867.0,0.4863143]
[1721015245231,0.143148,62872.0,62867.0,0.4863143]
[1721015245462,0.08105238,62873.0,62857.0,0.286364]
[1721015245463,0.1414,62863.0,62857.0,0.286364]
[1721015245666,0.1414,62863.0,62849.0,0.49597106]
[1721015245667,0.08105238,62858.0,62849.0,0.063801]
[1721015245861,0.20105238,62850.0,62824.0,0.1]
[1721015246053,0.1414,62855.0,62824.0,0.1]
[1721015246054,0.143203,62848.0,62839.0,0.143222]
[1721015246279,0.143203,62848.0,62834.0,0.063817]
[1721015246280,0.12,62848.0,62834.0,0.063817]
[1721015246448,0.1414,62855.0,62823.0,0.1]
[1721015246449,0.14447829,62847.0,62823.0,0.1]
[1721015246651,0.14447829,62847.0,62836.0,0.143229]
[1721015246857,0.28768329,62847.0,62837.0,0.143226]
[1721015247091,0.1405,62847.0,62846.0,0.143207]
[1721015247294,0.1405,62847.0,62838.0,0.00318267]
[1721015247513,0.1405,62847.0,62841.0,0.143217]
[1721015247935,0.143221,62840.0,62829.0,0.063822]
[1721015248137,0.00397884,62839.0,62837.0,0.014]
[1721015248361,0.12397835,62846.0,62837.0,0.014]
[1721015248562,0.12397871,62846.0,62832.0,0.286478]
[1721015248764,0.1405,62847.0,62833.0,0.00318296]
[1721015248969,0.1405,62847.0,62835.0,0.28646]
[1721015248970,0.12,62846.0,62835.0,0.28646]
[1721015249186,0.12,62846.0,62834.0,0.286468]
[1721015249187,0.12,62846.0,62837.0,0.286454]
[1721015249394,0.12,62846.0,62841.0,0.014]
[1721015249597,0.14447834,62847.0,62841.0,0.014]
[1721015249837,0.26447834,62847.0,62841.0,0.014]
[1721015250039,0.12,62846.0,62841.0,0.014]
[1721015250313,0.1405,62847.0,62841.0,0.014]
[1721015250535,0.14447808,62847.0,62841.0,0.014]
[1721015250763,0.14447808,62847.0,62841.0,0.143218]
[1721015250966,0.1405,62847.0,62835.0,0.286463]
[1721015251171,0.1415,62847.0,62846.0,0.429621]
[1721015251386,0.1415,62847.0,62837.0,0.286454]
[1721015251609,0.1405,62847.0,62844.0,0.14321]
[1721015251863,0.1405,62847.0,62841.0,0.026]
[1721015251864,0.12,62844.0,62841.0,0.026]
[1721015252072,0.00397834,62843.0,62841.0,0.026]
[1721015252281,0.14719334,62843.0,62841.0,0.012]
[1721015252501,0.427914,62847.0,62846.0,0.014]
[1721015252502,0.1425,62847.0,62846.0,0.014]
[1721015253172,0.1425,62847.0,62846.0,0.157207]
[1721015253583,0.1425,62847.0,62846.0,0.014]
[1721015254123,0.14447795,62847.0,62846.0,0.012]
[1721015254315,0.14447795,62847.0,62842.0,0.000913]
[1721015254316,0.263214,62843.0,62842.0,0.000913]
[1721015254501,0.90274869,62843.0,62842.0,0.000913]
[1721015255120,0.49632069,62843.0,62842.0,0.000913]
[1721015255329,0.32989269,62843.0,62842.0,0.000913]
[1721015255503,0.61632069,62843.0,62842.0,0.000913]
[1721015256112,0.143242,62831.0,62829.0,0.4863143]
[1721015256313,0.00397913,62832.0,62826.0,0.143251]
[1721015256511,0.406456,62837.0,62825.0,0.143252]
[1721015256512,0.00397922,62836.0,62825.0,0.143252]
[1721015256881,0.143236,62834.0,62826.0,0.143252]
[1721015257083,0.00397921,62833.0,62824.0,0.143255]
[1721015257256,0.00397921,62834.0,62827.0,0.143249]
[1721015257459,0.12,62839.0,62823.0,0.286516]
[1721015257693,0.143237,62833.0,62826.0,0.003]
[1721015257901,0.20554,62832.0,62826.0,0.003]
[1721015258074,0.26325,62827.0,62826.0,0.003]
[1721015258275,0.26325,62827.0,62818.0,0.009141]
[1721015258276,0.143258,62824.0,62818.0,0.009141]
[1721015258411,0.00397986,62823.0,62818.0,0.009141]
[1721015258616,0.12,62822.0,62818.0,0.009141]
[1721015258812,0.00397986,62823.0,62818.0,0.009141]
[1721015259075,0.14723886,62823.0,62818.0,0.009141]
[1721015259246,0.00397986,62823.0,62818.0,0.009141]
[1721015259445,0.12397986,62823.0,62818.0,0.009141]
[1721015259690,0.208268,62819.0,62818.0,0.009141]
[1721015259896,0.0819,62810.0,62797.0,0.087123]
[1721015260167,0.0819,62810.0,62798.0,0.01045137]
[1721015260168,0.00398128,62809.0,62798.0,0.01045137]
[1721015260575,0.286607,62804.0,62798.0,0.00715302]
[1721015260721,0.143312,62800.0,62796.0,0.023268]
[1721015260920,0.143312,62800.0,62799.0,0.00715302]
[1721015260921,0.14729333,62800.0,62799.0,0.00715302]
[1721015261118,0.14729333,62800.0,62796.0,0.023268]
[1721015261321,0.04205032,62807.0,62803.0,0.023268]
[1721015261521,0.0829,62810.0,62807.0,0.023268]
[1721015261522,0.0819,62810.0,62807.0,0.023268]
[1721015261747,0.0819,62810.0,62809.0,0.023268]
[1721015261945,0.0819,62810.0,62809.0,0.022268]
[1721015262193,0.0819,62810.0,62809.0,0.02966517]
[1721015262377,0.0819,62810.0,62809.0,0.57953917]
[1721015262581,0.0819,62810.0,62809.0,0.17295617]
[1721015262753,0.0819,62810.0,62809.0,0.14966517]
[1721015263330,0.0819,62810.0,62809.0,0.02966517]
[1721015263851,0.0819,62810.0,62809.0,0.022268]
[1721015264497,0.0819,62810.0,62809.0,0.02959805]
[1721015264816,0.22499762,62810.0,62809.0,0.02133005]
[1721015264971,0.08170862,62810.0,62809.0,0.04359805]
[1721015265176,0.08170862,62810.0,62809.0,0.022268]
[1721015265541,0.08170862,62810.0,62809.0,0.036268]
[1721015265673,0.08170862,62810.0,62809.0,0.02961722]
[1721015265876,0.08170862,62810.0,62809.0,0.31620022]
[1721015266088,0.08170862,62810.0,62809.0,0.59349122]
[1721015266287,0.08170862,62810.0,62809.0,0.16361722]
[1721015266890,0.08170862,62810.0,62809.0,0.88007422]
[1721015267099,0.0613,62814.0,62813.0,0.549846]
[1721015267294,0.0613,62814.0,62809.0,0.02134922]
[1721015267295,1.0,62819.0,62816.0,0.12]
[1721015267494,0.00306353,62818.0,62817.0,0.12722048]
[1721015267680,0.00306353,62818.0,62817.0,0.00722048]
[1721015267881,0.00306353,62818.0,62817.0,0.15049348]
[1721015268186,0.00306353,62818.0,62817.0,0.86585348]
[1721015268586,1.0,62819.0,62818.0,1.145165]
[1721015268811,1.0,62819.0,62818.0,1.168165]
[1721015269145,1.0,62819.0,62818.0,1.52190886]
[1721015269366,0.0625,62833.0,62832.0,0.549717]
[1721015269695,0.0625,62833.0,62832.0,0.263239]
[1721015269900,0.0625,62833.0,62832.0,0.15038316]
[1721015270212,0.0625,62833.0,62832.0,0.55686116]
[1721015270577,0.0625,62833.0,62832.0,0.57912916]
[1721015270781,0.0775,62835.0,62834.0,0.85844]
[1721015270981,0.0775,62835.0,62834.0,0.571971]
[1721015271134,0.0775,62835.0,62834.0,0.58251256]
[1721015271513,0.0775,62835.0,62834.0,0.29604356]
[1721015271714,0.0775,62835.0,62834.0,0.03280956]
[1721015271984,0.0775,62835.0,62834.0,0.022268]
[1721015272173,0.0775,62835.0,62833.0,0.022268]
[1721015272326,0.00704268,62834.0,62830.0,0.022268]
[1721015272526,0.00704268,62834.0,62833.0,0.022268]
[1721015272728,0.00306353,62834.0,62833.0,0.022268]
[1721015272932,0.00306353,62834.0,62827.0,0.286498]
[1721015272933,0.00306353,62834.0,62827.0,0.022268]
[1721015273134,0.00306353,62834.0,62818.0,0.12]
[1721015273135,0.14326,62823.0,62818.0,0.022268]
[1721015273369,0.143253,62826.0,62821.0,0.022268]
[1721015273569,0.1452,62828.0,62821.0,0.142268]
[1721015273570,0.143249,62828.0,62821.0,0.142268]
[1721015273780,1.0,62829.0,62821.0,0.142268]
[1721015273781,0.00306353,62827.0,62821.0,0.142268]
[1721015273976,0.00306353,62827.0,62825.0,0.12]
[1721015274195,1.0,62829.0,62824.0,0.143257]
[1721015274196,0.00306353,62828.0,62824.0,0.263257]
[1721015274556,0.00306353,62828.0,62821.0,0.022268]
[1721015275219,0.00306353,62828.0,62825.0,0.014]
[1721015275220,0.286501,62827.0,62825.0,0.014]
[1721015275535,0.286501,62827.0,62821.0,0.022268]
[1721015275536,0.00306353,62826.0,62821.0,0.022268]
[1721015275657,0.143259,62824.0,62820.0,0.022268]
[1721015275858,0.00306353,62823.0,62821.0,0.014]
[1721015276073,0.143258,62824.0,62821.0,0.022268]
[1721015276275,0.00306353,62825.0,62821.0,0.022268]
[1721015276487,0.0828,62824.0,62821.0,0.022268]
[1721015276683,0.143264,62821.0,62820.0,0.022268]
[1721015277460,0.143264,62821.0,62819.0,0.022268]
[1721015277461,0.143266,62820.0,62819.0,0.022268]
[1721015277668,0.14327,62819.0,62817.0,0.022268]
[1721015277921,0.00306353,62818.0,62817.0,0.022268]
[1721015278247,0.00306353,62818.0,62817.0,0.00717029]
[1721015278248,0.71941853,62818.0,62817.0,0.00717029]
[1721015278462,0.716355,62818.0,62817.0,0.00717029]
[1721015278654,0.143279,62815.0,62813.0,0.022268]
[1721015278841,0.143279,62815.0,62810.0,0.022268]
[1721015278842,0.00306353,62814.0,62810.0,0.022268]
[1721015279038,0.14634453,62814.0,62810.0,0.022268]
[1721015279236,0.14634453,62814.0,62811.0,0.00717798]
[1721015279498,0.00306353,62814.0,62813.0,0.022268]
[1721015279703,0.00306353,62817.0,62814.0,0.12]
[1721015279901,0.14633253,62819.0,62815.0,0.12]
[1721015280199,0.14633253,62819.0,62813.0,0.02944344]
[1721015280200,0.00306353,62819.0,62814.0,0.12]
[1721015280344,0.00306353,62819.0,62815.0,0.12]
[1721015280543,0.00306353,62819.0,62816.0,0.00719224]
[1721015280781,0.00306353,62819.0,62813.0,0.022268]
[1721015280782,0.14633353,62819.0,62813.0,0.022268]
[1721015280983,0.14633353,62819.0,62817.0,0.00719097]
[1721015281186,0.14633353,62819.0,62813.0,0.022268]
[1721015281590,0.00306353,62819.0,62814.0,0.00719477]
[1721015281998,0.00306353,62819.0,62813.0,0.022268]
[1721015282177,0.00306353,62819.0,62817.0,0.263272]
[1721015282376,0.00306353,62819.0,62818.0,0.12]
[1721015282601,0.00306353,62819.0,62818.0,0.1271897]
[1721015283383,0.00306353,62819.0,62818.0,0.4359997]
[1721015283589,0.00306353,62819.0,62818.0,0.8658127]
[1721015283770,1.0,62821.0,62820.0,0.263266]
[1721015283966,1.0,62821.0,62820.0,0.429798]
[1721015284189,1.0,62821.0,62820.0,0.57925317]
[1721015284423,1.0,62821.0,62820.0,0.86578517]
[1721015284641,1.0,62821.0,62820.0,0.99810174]
[1721015284839,1.0,62821.0,62820.0,0.86578517]
[1721015285388,0.386446,62839.0,62833.0,0.143236]
[1721015285389,0.1471,62839.0,62833.0,0.143236]
[1721015285590,1.0,62837.0,62835.0,0.12]
[1721015285806,1.0,62837.0,62833.0,0.022268]
[1721015285807,1.0,62837.0,62834.0,0.27388668]
[1721015286016,1.0,62837.0,62836.0,0.13064989]
[1721015286219,1.0,62837.0,62836.0,0.429688]
[1721015286417,1.0,62837.0,62836.0,0.58260589]
[1721015286831,1.0,62837.0,62836.0,0.86906489]
[1721015288559,1.0,62837.0,62836.0,1.16852389]
[1721015288764,0.0016,62841.0,62840.0,0.91837]
[1721015289015,0.0016,62841.0,62840.0,1.441138]
[1721015289163,1.0,62851.0,62850.0,0.858258]
[1721015289364,1.0,62851.0,62850.0,1.144654]
[1721015289588,0.0775,62863.0,62857.0,0.12]
[1721015289764,0.0775,62863.0,62862.0,0.26317]
[1721015289964,0.0775,62863.0,62862.0,0.429511]
[1721015290186,1.0662,62865.0,62862.0,0.429511]
[1721015290187,1.0,62865.0,62864.0,0.165434]
[1721015290730,1.0,62865.0,62864.0,0.451766]
[1721015291256,1.0,62865.0,62864.0,0.858098]
[1721015291898,1.0,62865.0,62864.0,1.16743]
[1721015292543,1.0,62865.0,62864.0,1.18143]
[1721015292757,1.0,62865.0,62864.0,0.451766]
[1721015292996,1.0,62865.0,62864.0,0.858098]
[1721015293189,1.0,62865.0,62864.0,0.752098]
[1721015293610,0.00306353,62879.0,62864.0,0.752098]
[1721015293611,0.00832,62882.0,62881.0,0.142268]
[1721015293819,0.00832,62882.0,62872.0,0.06]
[1721015293820,0.405351,62880.0,62874.0,0.1]
[1721015294024,0.405351,62880.0,62872.0,0.12]
[1721015294025,0.405351,62880.0,62879.0,0.71566]
[1721015294392,0.405351,62880.0,62879.0,1.001924]
[1721015294594,0.405351,62880.0,62879.0,1.121924]
[1721015294805,0.405351,62880.0,62879.0,1.187924]
[1721015295003,0.405351,62880.0,62879.0,1.269524]
[1721015295204,0.405351,62880.0,62879.0,1.869524]
[1721015295438,0.405351,62880.0,62879.0,1.569524]
[1721015295580,0.00832,62882.0,62881.0,1.221889]
[1721015295787,1e-08,62889.0,62888.0,0.429334]
[1721015296010,1e-08,62889.0,62888.0,1.00178]
[1721015296419,1e-08,62889.0,62879.0,0.014]
[1721015296420,0.0773,62887.0,62879.0,0.014]
[1721015296626,0.08105238,62880.0,62871.0,0.04682555]
[1721015296826,0.15835238,62887.0,62886.0,0.143116]
[1721015297027,0.0773,62887.0,62886.0,0.143116]
[1721015297255,1e-08,62889.0,62886.0,0.143116]
[1721015297459,1e-08,62889.0,62885.0,0.286236]
[1721015297620,1e-08,62889.0,62884.0,0.14312]
[1721015297822,1e-08,62889.0,62886.0,0.143113]
[1721015298019,1e-08,62889.0,62888.0,0.014]
[1721015298228,1e-08,62889.0,62888.0,0.157111]
[1721015298432,1e-08,62889.0,62888.0,0.143111]
[1721015298859,1e-08,62889.0,62885.0,0.014]
[1721015299216,1e-08,62889.0,62888.0,0.715557]
[1721015299618,1e-08,62889.0,62888.0,1.01578]
[1721015299765,1e-08,62889.0,62888.0,0.443334]
[1721015300820,1e-08,62889.0,62888.0,0.729557]
[1721015301426,1e-08,62889.0,62888.0,1.00178]
[1721015301627,1e-08,62889.0,62888.0,1.01578]
[1721015301955,1e-08,62889.0,62888.0,1.00178]
[1721015302365,1e-08,62889.0,62888.0,1.01578]
[1721015302580,1e-08,62889.0,62888.0,1.402003]
[1721015302772,1e-08,62889.0,62888.0,1.425003]
[1721015302974,1e-08,62889.0,62888.0,1.05278]
[1721015303174,1e-08,62889.0,62888.0,1.02478]
[1721015304455,1e-08,62889.0,62888.0,1.24478]
[1721015304977,1e-08,62889.0,62888.0,1.545003]
[1721015305186,1e-08,62889.0,62888.0,1.531003]
[1721015305389,0.98684497,62899.0,62888.0,1.531003]
[1721015305390,0.98684497,62899.0,62898.0,1.001619]